{"text_format":"1","workbook":"xlsx","n_sheets":11,"sheets":["1","المخزن","بادى 23","نامى 21 خشن","بادى نامى  ناعم","بادى نامى خشن","بياض","ردة","دشيشة","Setting","ورقة1"],"not_rendered":{"charts":0,"images":1,"macros":1,"external_links":1,"defined_names":0,"comments":0,"pivot_tables":0},"unopened":[],"bounds":{"document_bytes":16777216,"sheet_cells":100000,"rows_first":2000,"rows_last":500,"rows_between":2000,"halvings":0,"cell_chars":16384,"cell_head_chars":4096},"cells_cut":0,"cells_raw":0,"read":"whole","date_system":"1900"}

{"sheet":"1","index":0,"n_rows":101,"n_cols":16,"rows_kept":101,"cut":false,"hidden":false,"merged":[]}
["مسلسل",{"$f":"SUM($B$2:$B$1000)","v":0},"الصنف","الاسم","السعر",{"$f":"SUM($F$2:$F$1000)","v":0},"التاريخ",null,null,"بادى 23","نامى 21 خشن","بادى نامى ناعم","بادى نامى خشن","بياض","ردة","دشيشة"]
[{"$f":"IF(C2=\"\",\"\",SUBTOTAL(3,$C$2:C2))","v":""},null,null,null,null,{"$f":"IFERROR(B2*E2,\"\")","v":0},{"$f":"IF(B2=\"\",\"\",TODAY())","v":""}]
[{"$f":"IF(C3=\"\",\"\",SUBTOTAL(3,$C$2:C3))","v":""},null,null,null,null,{"$f":"IFERROR(B3*E3,\"\")","v":0},""]
[{"$f":"IF(C4=\"\",\"\",SUBTOTAL(3,$C$2:C4))","v":""},null,null,null,null,0,""]
[{"$f":"IF(C5=\"\",\"\",SUBTOTAL(3,$C$2:C5))","v":""},null,null,null,null,0,""]
[{"$f":"IF(C6=\"\",\"\",SUBTOTAL(3,$C$2:C6))","v":""},null,null,null,null,0,""]
[{"$f":"IF(C7=\"\",\"\",SUBTOTAL(3,$C$2:C7))","v":""},null,null,null,null,0,""]
[{"$f":"IF(C8=\"\",\"\",SUBTOTAL(3,$C$2:C8))","v":""},null,null,null,null,0,""]
[{"$f":"IF(C9=\"\",\"\",SUBTOTAL(3,$C$2:C9))","v":""},null,null,null,null,0,""]
[{"$f":"IF(C10=\"\",\"\",SUBTOTAL(3,$C$2:C10))","v":""},null,null,null,null,0,""]
[{"$f":"IF(C11=\"\",\"\",SUBTOTAL(3,$C$2:C11))","v":""},null,null,null,null,0,""]
[{"$f":"IF(C12=\"\",\"\",SUBTOTAL(3,$C$2:C12))","v":""},null,null,null,null,0,""]
[{"$f":"IF(C13=\"\",\"\",SUBTOTAL(3,$C$2:C13))","v":""},null,null,null,null,0,""]
[{"$f":"IF(C14=\"\",\"\",SUBTOTAL(3,$C$2:C14))","v":""},null,null,null,null,0,""]
[{"$f":"IF(C15=\"\",\"\",SUBTOTAL(3,$C$2:C15))","v":""},null,null,null,null,0,""]
[{"$f":"IF(C16=\"\",\"\",SUBTOTAL(3,$C$2:C16))","v":""},null,null,null,null,0,""]
[{"$f":"IF(C17=\"\",\"\",SUBTOTAL(3,$C$2:C17))","v":""},null,null,null,null,0,""]
[{"$f":"IF(C18=\"\",\"\",SUBTOTAL(3,$C$2:C18))","v":""},null,null,null,null,0,""]
[{"$f":"IF(C19=\"\",\"\",SUBTOTAL(3,$C$2:C19))","v":""},null,null,null,null,0,""]
[{"$f":"IF(C20=\"\",\"\",SUBTOTAL(3,$C$2:C20))","v":""},null,null,null,null,0,""]
[{"$f":"IF(C21=\"\",\"\",SUBTOTAL(3,$C$2:C21))","v":""},null,null,null,null,0,""]
[{"$f":"IF(C22=\"\",\"\",SUBTOTAL(3,$C$2:C22))","v":""},null,null,null,null,0,""]
[{"$f":"IF(C23=\"\",\"\",SUBTOTAL(3,$C$2:C23))","v":""},null,null,null,null,0,""]
[{"$f":"IF(C24=\"\",\"\",SUBTOTAL(3,$C$2:C24))","v":""},null,null,null,null,0,""]
[{"$f":"IF(C25=\"\",\"\",SUBTOTAL(3,$C$2:C25))","v":""},null,null,null,null,0,""]
[{"$f":"IF(C26=\"\",\"\",SUBTOTAL(3,$C$2:C26))","v":""},null,null,null,null,0,""]
[{"$f":"IF(C27=\"\",\"\",SUBTOTAL(3,$C$2:C27))","v":""},null,null,null,null,0,""]
[{"$f":"IF(C28=\"\",\"\",SUBTOTAL(3,$C$2:C28))","v":""},null,null,null,null,0,""]
[{"$f":"IF(C29=\"\",\"\",SUBTOTAL(3,$C$2:C29))","v":""},null,null,null,null,0,""]
[{"$f":"IF(C30=\"\",\"\",SUBTOTAL(3,$C$2:C30))","v":""},null,null,null,null,0,""]
[{"$f":"IF(C31=\"\",\"\",SUBTOTAL(3,$C$2:C31))","v":""},null,null,null,null,0,""]
[{"$f":"IF(C32=\"\",\"\",SUBTOTAL(3,$C$2:C32))","v":""},null,null,null,null,0,""]
[{"$f":"IF(C33=\"\",\"\",SUBTOTAL(3,$C$2:C33))","v":""},null,null,null,null,0,""]
[{"$f":"IF(C34=\"\",\"\",SUBTOTAL(3,$C$2:C34))","v":""},null,null,null,null,0,""]
[{"$f":"IF(C35=\"\",\"\",SUBTOTAL(3,$C$2:C35))","v":""},null,null,null,null,0,""]
[{"$f":"IF(C36=\"\",\"\",SUBTOTAL(3,$C$2:C36))","v":""},null,null,null,null,0,""]
[{"$f":"IF(C37=\"\",\"\",SUBTOTAL(3,$C$2:C37))","v":""},null,null,null,null,0,""]
[{"$f":"IF(C38=\"\",\"\",SUBTOTAL(3,$C$2:C38))","v":""},null,null,null,null,0,""]
[{"$f":"IF(C39=\"\",\"\",SUBTOTAL(3,$C$2:C39))","v":""},null,null,null,null,0,""]
[{"$f":"IF(C40=\"\",\"\",SUBTOTAL(3,$C$2:C40))","v":""},null,null,null,null,0,""]
[{"$f":"IF(C41=\"\",\"\",SUBTOTAL(3,$C$2:C41))","v":""},null,null,null,null,0,""]
[{"$f":"IF(C42=\"\",\"\",SUBTOTAL(3,$C$2:C42))","v":""},null,null,null,null,0,""]
[{"$f":"IF(C43=\"\",\"\",SUBTOTAL(3,$C$2:C43))","v":""},null,null,null,null,0,""]
[{"$f":"IF(C44=\"\",\"\",SUBTOTAL(3,$C$2:C44))","v":""},null,null,null,null,0,""]
[{"$f":"IF(C45=\"\",\"\",SUBTOTAL(3,$C$2:C45))","v":""},null,null,null,null,0,""]
[{"$f":"IF(C46=\"\",\"\",SUBTOTAL(3,$C$2:C46))","v":""},null,null,null,null,0,""]
[{"$f":"IF(C47=\"\",\"\",SUBTOTAL(3,$C$2:C47))","v":""},null,null,null,null,0,""]
[{"$f":"IF(C48=\"\",\"\",SUBTOTAL(3,$C$2:C48))","v":""},null,null,null,null,0,""]
[{"$f":"IF(C49=\"\",\"\",SUBTOTAL(3,$C$2:C49))","v":""},null,null,null,null,0,""]
[{"$f":"IF(C50=\"\",\"\",SUBTOTAL(3,$C$2:C50))","v":""},null,null,null,null,0,""]
[{"$f":"IF(C51=\"\",\"\",SUBTOTAL(3,$C$2:C51))","v":""},null,null,null,null,0,""]
[{"$f":"IF(C52=\"\",\"\",SUBTOTAL(3,$C$2:C52))","v":""},null,null,null,null,0,""]
[{"$f":"IF(C53=\"\",\"\",SUBTOTAL(3,$C$2:C53))","v":""},null,null,null,null,0,""]
[{"$f":"IF(C54=\"\",\"\",SUBTOTAL(3,$C$2:C54))","v":""},null,null,null,null,0,""]
[{"$f":"IF(C55=\"\",\"\",SUBTOTAL(3,$C$2:C55))","v":""},null,null,null,null,0,""]
[{"$f":"IF(C56=\"\",\"\",SUBTOTAL(3,$C$2:C56))","v":""},null,null,null,null,0,""]
[{"$f":"IF(C57=\"\",\"\",SUBTOTAL(3,$C$2:C57))","v":""},null,null,null,null,0,""]
[{"$f":"IF(C58=\"\",\"\",SUBTOTAL(3,$C$2:C58))","v":""},null,null,null,null,0,""]
[{"$f":"IF(C59=\"\",\"\",SUBTOTAL(3,$C$2:C59))","v":""},null,null,null,null,0,""]
[{"$f":"IF(C60=\"\",\"\",SUBTOTAL(3,$C$2:C60))","v":""},null,null,null,null,0,""]
[{"$f":"IF(C61=\"\",\"\",SUBTOTAL(3,$C$2:C61))","v":""},null,null,null,null,0,""]
[{"$f":"IF(C62=\"\",\"\",SUBTOTAL(3,$C$2:C62))","v":""},null,null,null,null,0,""]
[{"$f":"IF(C63=\"\",\"\",SUBTOTAL(3,$C$2:C63))","v":""},null,null,null,null,0,""]
[{"$f":"IF(C64=\"\",\"\",SUBTOTAL(3,$C$2:C64))","v":""},null,null,null,null,0,""]
[{"$f":"IF(C65=\"\",\"\",SUBTOTAL(3,$C$2:C65))","v":""},null,null,null,null,0,""]
[{"$f":"IF(C66=\"\",\"\",SUBTOTAL(3,$C$2:C66))","v":""},null,null,null,null,0,{"$f":"IF(B66=\"\",\"\",TODAY())","v":""}]
[{"$f":"IF(C67=\"\",\"\",SUBTOTAL(3,$C$2:C67))","v":""},null,null,null,null,{"$f":"IFERROR(B67*E67,\"\")","v":0},""]
[{"$f":"IF(C68=\"\",\"\",SUBTOTAL(3,$C$2:C68))","v":""},null,null,null,null,0,""]
[{"$f":"IF(C69=\"\",\"\",SUBTOTAL(3,$C$2:C69))","v":""},null,null,null,null,0,""]
[{"$f":"IF(C70=\"\",\"\",SUBTOTAL(3,$C$2:C70))","v":""},null,null,null,null,0,""]
[{"$f":"IF(C71=\"\",\"\",SUBTOTAL(3,$C$2:C71))","v":""},null,null,null,null,0,""]
[{"$f":"IF(C72=\"\",\"\",SUBTOTAL(3,$C$2:C72))","v":""},null,null,null,null,0,""]
[{"$f":"IF(C73=\"\",\"\",SUBTOTAL(3,$C$2:C73))","v":""},null,null,null,null,0,""]
[{"$f":"IF(C74=\"\",\"\",SUBTOTAL(3,$C$2:C74))","v":""},null,null,null,null,0,""]
[{"$f":"IF(C75=\"\",\"\",SUBTOTAL(3,$C$2:C75))","v":""},null,null,null,null,0,""]
[{"$f":"IF(C76=\"\",\"\",SUBTOTAL(3,$C$2:C76))","v":""},null,null,null,null,0,""]
[{"$f":"IF(C77=\"\",\"\",SUBTOTAL(3,$C$2:C77))","v":""},null,null,null,null,0,""]
[{"$f":"IF(C78=\"\",\"\",SUBTOTAL(3,$C$2:C78))","v":""},null,null,null,null,0,""]
[{"$f":"IF(C79=\"\",\"\",SUBTOTAL(3,$C$2:C79))","v":""},null,null,null,null,0,""]
[{"$f":"IF(C80=\"\",\"\",SUBTOTAL(3,$C$2:C80))","v":""},null,null,null,null,0,""]
[{"$f":"IF(C81=\"\",\"\",SUBTOTAL(3,$C$2:C81))","v":""},null,null,null,null,0,""]
[{"$f":"IF(C82=\"\",\"\",SUBTOTAL(3,$C$2:C82))","v":""},null,null,null,null,0,""]
[{"$f":"IF(C83=\"\",\"\",SUBTOTAL(3,$C$2:C83))","v":""},null,null,null,null,0,""]
[{"$f":"IF(C84=\"\",\"\",SUBTOTAL(3,$C$2:C84))","v":""},null,null,null,null,0,""]
[{"$f":"IF(C85=\"\",\"\",SUBTOTAL(3,$C$2:C85))","v":""},null,null,null,null,0,""]
[{"$f":"IF(C86=\"\",\"\",SUBTOTAL(3,$C$2:C86))","v":""},null,null,null,null,0,""]
[{"$f":"IF(C87=\"\",\"\",SUBTOTAL(3,$C$2:C87))","v":""},null,null,null,null,0,""]
[{"$f":"IF(C88=\"\",\"\",SUBTOTAL(3,$C$2:C88))","v":""},null,null,null,null,0,""]
[{"$f":"IF(C89=\"\",\"\",SUBTOTAL(3,$C$2:C89))","v":""},null,null,null,null,0,""]
[{"$f":"IF(C90=\"\",\"\",SUBTOTAL(3,$C$2:C90))","v":""},null,null,null,null,0,""]
[{"$f":"IF(C91=\"\",\"\",SUBTOTAL(3,$C$2:C91))","v":""},null,null,null,null,0,""]
[{"$f":"IF(C92=\"\",\"\",SUBTOTAL(3,$C$2:C92))","v":""},null,null,null,null,0,""]
[{"$f":"IF(C93=\"\",\"\",SUBTOTAL(3,$C$2:C93))","v":""},null,null,null,null,0,""]
[{"$f":"IF(C94=\"\",\"\",SUBTOTAL(3,$C$2:C94))","v":""},null,null,null,null,0,""]
[{"$f":"IF(C95=\"\",\"\",SUBTOTAL(3,$C$2:C95))","v":""},null,null,null,null,0,""]
[{"$f":"IF(C96=\"\",\"\",SUBTOTAL(3,$C$2:C96))","v":""},null,null,null,null,0,""]
[{"$f":"IF(C97=\"\",\"\",SUBTOTAL(3,$C$2:C97))","v":""},null,null,null,null,0,""]
[{"$f":"IF(C98=\"\",\"\",SUBTOTAL(3,$C$2:C98))","v":""},null,null,null,null,0,""]
[{"$f":"IF(C99=\"\",\"\",SUBTOTAL(3,$C$2:C99))","v":""},null,null,null,null,0,""]
[{"$f":"IF(C100=\"\",\"\",SUBTOTAL(3,$C$2:C100))","v":""},null,null,null,null,0,""]
[{"$f":"IF(C101=\"\",\"\",SUBTOTAL(3,$C$2:C101))","v":""},null,null,null,null,0,""]

{"sheet":"المخزن","index":1,"n_rows":270,"n_cols":11,"rows_kept":270,"cut":false,"hidden":false,"merged":[[0,0,1,0],[0,10,1,10],[0,9,1,9],[2,9,3,9],[4,9,5,9],[6,9,7,9],[8,9,9,9],[10,9,11,9],[24,9,25,9],[26,9,27,9],[28,9,29,9],[30,9,31,9],[32,9,33,9],[34,9,35,9],[12,9,13,9],[14,9,15,9],[16,9,17,9],[18,9,19,9],[20,9,21,9],[22,9,23,9],[48,9,49,9],[50,9,51,9],[52,9,53,9],[54,9,55,9],[56,9,57,9],[58,9,59,9],[36,9,37,9],[38,9,39,9],[40,9,41,9],[42,9,43,9],[44,9,45,9],[46,9,47,9],[72,9,73,9],[74,9,75,9],[76,9,77,9],[78,9,79,9],[80,9,81,9],[82,9,83,9],[60,9,61,9],[62,9,63,9],[64,9,65,9],[66,9,67,9],[68,9,69,9],[70,9,71,9],[96,9,97,9],[98,9,99,9],[100,9,101,9],[102,9,103,9],[104,9,105,9],[106,9,107,9],[84,9,85,9],[86,9,87,9],[88,9,89,9],[90,9,91,9],[92,9,93,9],[94,9,95,9],[120,9,121,9],[122,9,123,9],[124,9,125,9],[126,9,127,9],[128,9,129,9],[130,9,131,9],[108,9,109,9],[110,9,111,9],[112,9,113,9],[114,9,115,9],[116,9,117,9],[118,9,119,9],[144,9,145,9],[146,9,147,9],[148,9,149,9],[150,9,151,9],[152,9,153,9],[154,9,155,9],[132,9,133,9],[134,9,135,9],[136,9,137,9],[138,9,139,9],[140,9,141,9],[142,9,143,9],[168,9,169,9],[170,9,171,9],[172,9,173,9],[174,9,175,9],[176,9,177,9],[178,9,179,9],[156,9,157,9],[158,9,159,9],[160,9,161,9],[162,9,163,9],[164,9,165,9],[166,9,167,9],[192,9,193,9],[194,9,195,9],[196,9,197,9],[198,9,199,9],[200,9,201,9],[202,9,203,9],[180,9,181,9],[182,9,183,9],[184,9,185,9],[186,9,187,9],[188,9,189,9],[190,9,191,9],[216,9,217,9],[218,9,219,9],[220,9,221,9],[222,9,223,9],[224,9,225,9],[226,9,227,9],[204,9,205,9],[206,9,207,9],[208,9,209,9],[210,9,211,9],[212,9,213,9],[214,9,215,9],[240,9,241,9],[242,9,243,9],[244,9,245,9],[246,9,247,9],[248,9,249,9],[250,9,251,9],[228,9,229,9],[230,9,231,9],[232,9,233,9],[234,9,235,9],[236,9,237,9],[238,9,239,9],[264,9,265,9],[266,9,267,9],[268,9,269,9],[252,9,253,9],[254,9,255,9],[256,9,257,9],[258,9,259,9],[260,9,261,9],[262,9,263,9]]}
[null,"الصنف",{"$f":"[1]ورقة1!B4","v":"بادى 23"},{"$f":"[1]ورقة1!C4","v":"نامى خشن"},{"$f":"[1]ورقة1!D4","v":"بادى نامى ناعم"},{"$f":"[1]ورقة1!E4","v":"بادى نامى خشن"},{"$f":"[1]ورقة1!F4","v":"بياض"},{"$f":"[1]ورقة1!G4","v":"ردة"},{"$f":"[1]ورقة1!H4","v":"دشيشة"},"التاريخ"]
[null,"الموجود بالبرنامج",{"$f":"'بادى 23'!I1","v":12.31},{"$f":"'نامى 21 خشن'!I1","v":52},{"$f":"'بادى نامى  ناعم'!I1","v":0},{"$f":"'بادى نامى خشن'!I1","v":18.710000000000004},{"$f":"بياض!I1","v":5},{"$f":"ردة!I1","v":0},{"$f":"دشيشة!I1","v":0}]
[null,"الموجود بالمخزن صباحا",12.6,55,null,18.399999999999999,5]
[null,"الموجود بالمخزن مساءا",12.5,54,null,19.100000000000001,5]
[null,"الموجود بالمخزن صباحا"]
[null,"الموجود بالمخزن مساءا"]
[null,"الموجود بالمخزن صباحا"]
[null,"الموجود بالمخزن مساءا"]
[null,"الموجود بالمخزن صباحا"]
[null,"الموجود بالمخزن مساءا"]
[null,"الموجود بالمخزن صباحا"]
[null,"الموجود بالمخزن مساءا"]
[null,"الموجود بالمخزن صباحا"]
[null,"الموجود بالمخزن مساءا"]
[null,"الموجود بالمخزن صباحا"]
[null,"الموجود بالمخزن مساءا"]
[null,"الموجود بالمخزن صباحا"]
[null,"الموجود بالمخزن مساءا"]
[null,"الموجود بالمخزن صباحا"]
[null,"الموجود بالمخزن مساءا"]
[null,"الموجود بالمخزن صباحا"]
[null,"الموجود بالمخزن مساءا"]
[null,"الموجود بالمخزن صباحا"]
[null,"الموجود بالمخزن مساءا"]
[null,"الموجود بالمخزن صباحا"]
[null,"الموجود بالمخزن مساءا"]
[null,"الموجود بالمخزن صباحا"]
[null,"الموجود بالمخزن مساءا"]
[null,"الموجود بالمخزن صباحا"]
[null,"الموجود بالمخزن مساءا"]
[null,"الموجود بالمخزن صباحا"]
[null,"الموجود بالمخزن مساءا"]
[null,"الموجود بالمخزن صباحا"]
[null,"الموجود بالمخزن مساءا"]
[null,"الموجود بالمخزن صباحا",null,null,null,null,null,null,null,null,"                                                                                                                                                                                                                                                                                                                                                                                                                                                                                                                                                                                                                                                                                                                                                                                                                                                                                                                                                                                                                                                                                                                                                                                                                                                                                                                                                                                                                                                                                                                                                                                                                                                                                                                                                                                                                                                                                                                                                                                                                                       "]
[null,"الموجود بالمخزن مساءا"]
[null,"الموجود بالمخزن صباحا"]
[null,"الموجود بالمخزن مساءا"]
[null,"الموجود بالمخزن صباحا"]
[null,"الموجود بالمخزن مساءا"]
[null,"الموجود بالمخزن صباحا"]
[null,"الموجود بالمخزن مساءا"]
[null,"الموجود بالمخزن صباحا"]
[null,"الموجود بالمخزن مساءا",null,null,null,null,null,null,null,null,"           "]
[null,"الموجود بالمخزن صباحا"]
[null,"الموجود بالمخزن مساءا"]
[null,"الموجود بالمخزن صباحا"]
[null,"الموجود بالمخزن مساءا"]
[null,"الموجود بالمخزن صباحا"]
[null,"الموجود بالمخزن مساءا"]
[null,"الموجود بالمخزن صباحا"]
[null,"الموجود بالمخزن مساءا"]
[null,"الموجود بالمخزن صباحا"]
[null,"الموجود بالمخزن مساءا"]
[null,"الموجود بالمخزن صباحا",null,null,null,null,null,null,null,null,7]
[null,"الموجود بالمخزن مساءا"]
[null,"الموجود بالمخزن صباحا"]
[null,"الموجود بالمخزن مساءا"]
[null,"الموجود بالمخزن صباحا"]
[null,"الموجود بالمخزن مساءا"]
[null,"الموجود بالمخزن صباحا"]
[null,"الموجود بالمخزن مساءا"]
[null,"الموجود بالمخزن صباحا"]
[null,"الموجود بالمخزن مساءا"]
[null,"الموجود بالمخزن صباحا"]
[null,"الموجود بالمخزن مساءا"]
[null,"الموجود بالمخزن صباحا"]
[null,"الموجود بالمخزن مساءا"]
[null,"الموجود بالمخزن صباحا"]
[null,"الموجود بالمخزن مساءا"]
[null,"الموجود بالمخزن صباحا"]
[null,"الموجود بالمخزن مساءا"]
[null,"الموجود بالمخزن صباحا"]
[null,"الموجود بالمخزن مساءا"]
[null,"الموجود بالمخزن صباحا"]
[null,"الموجود بالمخزن مساءا"]
[null,"الموجود بالمخزن صباحا"]
[null,"الموجود بالمخزن مساءا"]
[null,"الموجود بالمخزن صباحا"]
[null,"الموجود بالمخزن مساءا"]
[null,"الموجود بالمخزن صباحا"]
[null,"الموجود بالمخزن مساءا"]
[null,"الموجود بالمخزن صباحا"]
[null,"الموجود بالمخزن مساءا"]
[null,"الموجود بالمخزن صباحا"]
[null,"الموجود بالمخزن مساءا"]
[null,"الموجود بالمخزن صباحا"]
[null,"الموجود بالمخزن مساءا"]
[null,"الموجود بالمخزن صباحا"]
[null,"الموجود بالمخزن مساءا"]
[null,"الموجود بالمخزن صباحا"]
[null,"الموجود بالمخزن مساءا"]
[null,"الموجود بالمخزن صباحا"]
[null,"الموجود بالمخزن مساءا"]
[null,"الموجود بالمخزن صباحا"]
[null,"الموجود بالمخزن مساءا"]
[null,"الموجود بالمخزن صباحا"]
[null,"الموجود بالمخزن مساءا"]
[null,"الموجود بالمخزن صباحا"]
[null,"الموجود بالمخزن مساءا"]
[null,"الموجود بالمخزن صباحا"]
[null,"الموجود بالمخزن مساءا"]
[null,"الموجود بالمخزن صباحا"]
[null,"الموجود بالمخزن مساءا"]
[null,"الموجود بالمخزن صباحا"]
[null,"الموجود بالمخزن مساءا"]
[null,"الموجود بالمخزن صباحا"]
[null,"الموجود بالمخزن مساءا"]
[null,"الموجود بالمخزن صباحا"]
[null,"الموجود بالمخزن مساءا"]
[null,"الموجود بالمخزن صباحا"]
[null,"الموجود بالمخزن مساءا"]
[null,"الموجود بالمخزن صباحا"]
[null,"الموجود بالمخزن مساءا"]
[null,"الموجود بالمخزن صباحا"]
[null,"الموجود بالمخزن مساءا"]
[null,"الموجود بالمخزن صباحا"]
[null,"الموجود بالمخزن مساءا"]
[null,"الموجود بالمخزن صباحا"]
[null,"الموجود بالمخزن مساءا"]
[null,"الموجود بالمخزن صباحا"]
[null,"الموجود بالمخزن مساءا"]
[null,"الموجود بالمخزن صباحا"]
[null,"الموجود بالمخزن مساءا"]
[null,"الموجود بالمخزن صباحا"]
[null,"الموجود بالمخزن مساءا"]
[null,"الموجود بالمخزن صباحا"]
[null,"الموجود بالمخزن مساءا"]
[null,"الموجود بالمخزن صباحا"]
[null,"الموجود بالمخزن مساءا"]
[null,"الموجود بالمخزن صباحا"]
[null,"الموجود بالمخزن مساءا"]
[null,"الموجود بالمخزن صباحا"]
[null,"الموجود بالمخزن مساءا"]
[null,"الموجود بالمخزن صباحا"]
[null,"الموجود بالمخزن مساءا"]
[null,"الموجود بالمخزن صباحا"]
[null,"الموجود بالمخزن مساءا"]
[null,"الموجود بالمخزن صباحا"]
[null,"الموجود بالمخزن مساءا"]
[null,"الموجود بالمخزن صباحا"]
[null,"الموجود بالمخزن مساءا"]
[null,"الموجود بالمخزن صباحا"]
[null,"الموجود بالمخزن مساءا"]
[null,"الموجود بالمخزن صباحا"]
[null,"الموجود بالمخزن مساءا"]
[null,"الموجود بالمخزن صباحا"]
[null,"الموجود بالمخزن مساءا"]
[null,"الموجود بالمخزن صباحا"]
[null,"الموجود بالمخزن مساءا"]
[null,"الموجود بالمخزن صباحا"]
[null,"الموجود بالمخزن مساءا"]
[null,"الموجود بالمخزن صباحا"]
[null,"الموجود بالمخزن مساءا"]
[null,"الموجود بالمخزن صباحا"]
[null,"الموجود بالمخزن مساءا"]
[null,"الموجود بالمخزن صباحا"]
[null,"الموجود بالمخزن مساءا"]
[null,"الموجود بالمخزن صباحا"]
[null,"الموجود بالمخزن مساءا"]
[null,"الموجود بالمخزن صباحا"]
[null,"الموجود بالمخزن مساءا"]
[null,"الموجود بالمخزن صباحا"]
[null,"الموجود بالمخزن مساءا"]
[null,"الموجود بالمخزن صباحا"]
[null,"الموجود بالمخزن مساءا"]
[null,"الموجود بالمخزن صباحا"]
[null,"الموجود بالمخزن مساءا"]
[null,"الموجود بالمخزن صباحا"]
[null,"الموجود بالمخزن مساءا"]
[null,"الموجود بالمخزن صباحا"]
[null,"الموجود بالمخزن مساءا"]
[null,"الموجود بالمخزن صباحا"]
[null,"الموجود بالمخزن مساءا"]
[null,"الموجود بالمخزن صباحا"]
[null,"الموجود بالمخزن مساءا"]
[null,"الموجود بالمخزن صباحا"]
[null,"الموجود بالمخزن مساءا"]
[null,"الموجود بالمخزن صباحا"]
[null,"الموجود بالمخزن مساءا"]
[null,"الموجود بالمخزن صباحا"]
[null,"الموجود بالمخزن مساءا"]
[null,"الموجود بالمخزن صباحا"]
[null,"الموجود بالمخزن مساءا"]
[null,"الموجود بالمخزن صباحا"]
[null,"الموجود بالمخزن مساءا"]
[null,"الموجود بالمخزن صباحا"]
[null,"الموجود بالمخزن مساءا"]
[null,"الموجود بالمخزن صباحا"]
[null,"الموجود بالمخزن مساءا"]
[null,"الموجود بالمخزن صباحا"]
[null,"الموجود بالمخزن مساءا"]
[null,"الموجود بالمخزن صباحا"]
[null,"الموجود بالمخزن مساءا"]
[null,"الموجود بالمخزن صباحا"]
[null,"الموجود بالمخزن مساءا"]
[null,"الموجود بالمخزن صباحا"]
[null,"الموجود بالمخزن مساءا"]
[null,"الموجود بالمخزن صباحا"]
[null,"الموجود بالمخزن مساءا"]
[null,"الموجود بالمخزن صباحا"]
[null,"الموجود بالمخزن مساءا"]
[null,"الموجود بالمخزن صباحا"]
[null,"الموجود بالمخزن مساءا"]
[null,"الموجود بالمخزن صباحا"]
[null,"الموجود بالمخزن مساءا"]
[null,"الموجود بالمخزن صباحا"]
[null,"الموجود بالمخزن مساءا"]
[null,"الموجود بالمخزن صباحا"]
[null,"الموجود بالمخزن مساءا"]
[null,"الموجود بالمخزن صباحا"]
[null,"الموجود بالمخزن مساءا"]
[null,"الموجود بالمخزن صباحا"]
[null,"الموجود بالمخزن مساءا"]
[null,"الموجود بالمخزن صباحا"]
[null,"الموجود بالمخزن مساءا"]
[null,"الموجود بالمخزن صباحا"]
[null,"الموجود بالمخزن مساءا"]
[null,"الموجود بالمخزن صباحا"]
[null,"الموجود بالمخزن مساءا"]
[null,"الموجود بالمخزن صباحا"]
[null,"الموجود بالمخزن مساءا"]
[null,"الموجود بالمخزن صباحا"]
[null,"الموجود بالمخزن مساءا"]
[null,"الموجود بالمخزن صباحا"]
[null,"الموجود بالمخزن مساءا"]
[null,"الموجود بالمخزن صباحا"]
[null,"الموجود بالمخزن مساءا"]
[null,"الموجود بالمخزن صباحا"]
[null,"الموجود بالمخزن مساءا"]
[null,"الموجود بالمخزن صباحا"]
[null,"الموجود بالمخزن مساءا"]
[null,"الموجود بالمخزن صباحا"]
[null,"الموجود بالمخزن مساءا"]
[null,"الموجود بالمخزن صباحا"]
[null,"الموجود بالمخزن مساءا"]
[null,"الموجود بالمخزن صباحا"]
[null,"الموجود بالمخزن مساءا"]
[null,"الموجود بالمخزن صباحا"]
[null,"الموجود بالمخزن مساءا"]
[null,"الموجود بالمخزن صباحا"]
[null,"الموجود بالمخزن مساءا"]
[null,"الموجود بالمخزن صباحا"]
[null,"الموجود بالمخزن مساءا"]
[null,"الموجود بالمخزن صباحا"]
[null,"الموجود بالمخزن مساءا"]
[null,"الموجود بالمخزن صباحا"]
[null,"الموجود بالمخزن مساءا"]
[null,"الموجود بالمخزن صباحا"]
[null,"الموجود بالمخزن مساءا"]
[null,"الموجود بالمخزن صباحا"]
[null,"الموجود بالمخزن مساءا"]
[null,"الموجود بالمخزن صباحا"]
[null,"الموجود بالمخزن مساءا"]
[null,"الموجود بالمخزن صباحا"]
[null,"الموجود بالمخزن مساءا"]
[null,"الموجود بالمخزن صباحا"]
[null,"الموجود بالمخزن مساءا"]
[null,"الموجود بالمخزن صباحا"]
[null,"الموجود بالمخزن مساءا"]
[null,"الموجود بالمخزن صباحا"]
[null,"الموجود بالمخزن مساءا"]
[null,"الموجود بالمخزن صباحا"]
[null,"الموجود بالمخزن مساءا"]
[null,"الموجود بالمخزن صباحا"]
[null,"الموجود بالمخزن مساءا"]
[null,"الموجود بالمخزن صباحا"]
[null,"الموجود بالمخزن مساءا"]
[null,"الموجود بالمخزن صباحا"]
[null,"الموجود بالمخزن مساءا"]

{"sheet":"بادى 23","index":2,"n_rows":131,"n_cols":18,"rows_kept":131,"cut":false,"hidden":false,"merged":[]}
["مسلسل",{"$f":"SUM($B$2:$B$986)","v":545.5},"الصنف","الاسم","السعر",{"$f":"SUM($F$2:$F$986)","v":0},"تاريخ البيع",{"$f":"SUM($H$2:$H$986)","v":10.91},{"$f":"SUM($I$2:$I$986)","v":12.31},{"$f":"SUM($J$2:$J$986)","v":23.22},"التاريخ"]
[1,50,"بادى 23","الشيخ عمر",null,0,"2018-12-05",{"$f":"B2/50","v":1},{"$f":"J2-H2","v":2.2200000000000002},3.22,{"$f":"IF($J2=\"\",\"\",IF(K2=\"\",TODAY(),K2))","v":"2018-12-04"}]
[2,1,"بادى 23","زبون",null,0,"2018-12-05",0.02,-0.02,null,""]
[3,2,"بادى 23","زبون",null,0,"2018-12-05",0.04,-0.04,null,""]
[4,8,"بادى 23","زبون",null,0,"2018-12-05",0.16,-0.16,null,""]
[2,3,"بادى 23","زبون",null,0,"2018-12-06",0.06,-0.06,null,""]
[3,2,"بادى 23","الحاج محمد",null,0,"2018-12-06",0.04,-0.04,null,""]
[1,50,"بادى 23","زبون",null,0,"2018-12-06",1,-1,null,""]
[2,3,"بادى 23","زبون",null,0,"2018-12-08",0.06,-0.06,null,""]
[3,3,"بادى 23","زبون",null,0,"2018-12-08",0.06,-0.06,null,""]
[3,2,"بادى 23","زبون",null,0,"2018-12-09",0.04,-0.04,null,""]
[3,2,"بادى 23","السيد ابو ندا","اجل",null,"2018-12-10",0.04,-0.04,null,""]
[4,5,"بادى 23","الحاج عبده اليابانى","اجل",null,"2018-12-10",0.1,-0.1,null,""]
[1,1.5,"بادى 23","زبونة",null,0,"2018-12-11",0.03,19.97,20,"2018-12-11"]
[2,50,"بادى 23","الشيخ عمر","اجل",null,"2018-12-12",1,-1,null,""]
[4,350,"بادى 23","فكرى","اجل",null,"2018-12-12",7,-7,null,""]
[1,3,"بادى 23","زبونة",null,0,"2018-12-12",0.06,-0.06,null,""]
[2,1,"بادى 23","الحاج محمد",null,0,"2018-12-12",0.02,-0.02,null,""]
[1,1.5,"بادى 23","فتحية",null,0,"2018-12-15",0.03,-0.03,null,""]
[6,3,"بادى 23","الحاج محمد",null,0,"2018-12-15",0.06,-0.06,null,""]
[8,3,"بادى 23","فتحية",null,0,"2018-12-15",0.06,-0.06,null,""]
[1,1.5,"بادى 23","زبون",null,0,"2018-12-15",0.03,-0.03,null,""]
[null,null,null,null,null,null,null,0,0,null,""]
[null,null,null,null,null,null,null,0,0,null,""]
[null,null,null,null,null,null,null,0,0,null,""]
[null,null,null,null,null,null,null,0,0,null,""]
[null,null,null,null,null,null,null,0,0,null,""]
[null,null,null,null,null,null,null,0,0,null,""]
[null,null,null,null,null,null,null,0,0,null,""]
[null,null,null,null,null,null,null,0,0,null,""]
[null,null,null,null,null,null,null,0,0,null,""]
[null,null,null,null,null,null,null,0,0,null,""]
[null,null,null,null,null,null,null,0,0,null,""]
[null,null,null,null,null,null,null,0,0,null,{"$f":"IF($J34=\"\",\"\",IF(K34=\"\",TODAY(),K34))","v":""}]
[null,null,null,null,null,null,null,0,0,null,""]
[null,null,null,null,null,null,null,0,0,null,""]
[null,null,null,null,null,null,null,0,0,null,""]
[null,null,null,null,null,null,null,0,0,null,""]
[null,null,null,null,null,null,null,0,0,null,""]
[null,null,null,null,null,null,null,0,0,null,""]
[null,null,null,null,null,null,null,0,0,null,""]
[null,null,null,null,null,null,null,0,0,null,""]
[null,null,null,null,null,null,null,0,0,null,""]
[null,null,null,null,null,null,null,0,0,null,""]
[null,null,null,null,null,null,null,0,0,null,""]
[null,null,null,null,null,null,null,0,0,null,""]
[null,null,null,null,null,null,null,0,0,null,""]
[null,null,null,null,null,null,null,0,0,null,""]
[null,null,null,null,null,null,null,0,0,null,""]
[null,null,null,null,null,null,null,0,0,null,""]
[null,null,null,null,null,null,null,0,0,null,""]
[null,null,null,null,null,null,null,0,0,null,""]
[null,null,null,null,null,null,null,0,0,null,""]
[null,null,null,null,null,null,null,0,0,null,""]
[null,null,null,null,null,null,null,0,0,null,""]
[null,null,null,null,null,null,null,0,0,null,""]
[null,null,null,null,null,null,null,0,0,null,""]
[null,null,null,null,null,null,null,0,0,null,""]
[null,null,null,null,null,null,null,0,0,null,""]
[null,null,null,null,null,null,null,0,0,null,""]
[null,null,null,null,null,null,null,0,0,null,""]
[null,null,null,null,null,null,null,0,0,null,""]
[null,null,null,null,null,null,null,0,0,null,""]
[null,null,null,null,null,null,null,0,0,null,""]
[null,null,null,null,null,null,null,0,0,null,"",null,null,null,null,null,null,{"$f":"IF($Q65=\"\",\"\",IF(R65=\"\",TODAY(),R65))","v":""}]
[null,null,null,null,null,null,null,{"$f":"B66/50","v":0},{"$f":"J66-H66","v":0},null,"",null,null,null,null,null,null,""]
[null,null,null,null,null,null,null,0,0,null,"",null,null,null,null,null,null,""]
[null,null,null,null,null,null,null,0,0,null,"",null,null,null,null,null,null,""]
[null,null,null,null,null,null,null,0,0,null,"",null,null,null,null,null,null,""]
[null,null,null,null,null,null,null,0,0,null,"",null,null,null,null,null,null,""]
[null,null,null,null,null,null,null,0,0,null,"",null,null,null,null,null,null,""]
[null,null,null,null,null,null,null,0,0,null,"",null,null,null,null,null,null,""]
[null,null,null,null,null,null,null,0,0,null,"",null,null,null,null,null,null,""]
[null,null,null,null,null,null,null,0,0,null,"",null,null,null,null,null,null,""]
[null,null,null,null,null,null,null,0,0,null,"",null,null,null,null,null,null,""]
[null,null,null,null,null,null,null,0,0,null,"",null,null,null,null,null,null,""]
[null,null,null,null,null,null,null,0,0,null,"",null,null,null,null,null,null,""]
[null,null,null,null,null,null,null,0,0,null,"",null,null,null,null,null,null,""]
[null,null,null,null,null,null,null,0,0,null,"",null,null,null,null,null,null,""]
[null,null,null,null,null,null,null,0,0,null,"",null,null,null,null,null,null,""]
[null,null,null,null,null,null,null,0,0,null,"",null,null,null,null,null,null,""]
[null,null,null,null,null,null,null,0,0,null,"",null,null,null,null,null,null,""]
[null,null,null,null,null,null,null,0,0,null,"",null,null,null,null,null,null,""]
[null,null,null,null,null,null,null,0,0,null,"",null,null,null,null,null,null,""]
[null,null,null,null,null,null,null,0,0,null,"",null,null,null,null,null,null,""]
[null,null,null,null,null,null,null,0,0,null,"",null,null,null,null,null,null,""]
[null,null,null,null,null,null,null,0,0,null,"",null,null,null,null,null,null,""]
[null,null,null,null,null,null,null,0,0,null,"",null,null,null,null,null,null,""]
[null,null,null,null,null,null,null,0,0,null,"",null,null,null,null,null,null,""]
[null,null,null,null,null,null,null,0,0,null,"",null,null,null,null,null,null,""]
[null,null,null,null,null,null,null,0,0]
[null,null,null,null,null,null,null,0,0,null,"",null,null,null,null,null,null,""]
[null,null,null,null,null,null,null,0,0,null,"",null,null,null,null,null,null,""]
[null,null,null,null,null,null,null,0,0,null,"",null,null,null,null,null,null,""]
[null,null,null,null,null,null,null,0,0,null,"",null,null,null,null,null,null,""]
[null,null,null,null,null,null,null,0,0,null,"",null,null,null,null,null,null,""]
[null,null,null,null,null,null,null,0,0,null,"",null,null,null,null,null,null,""]
[null,null,null,null,null,null,null,0,0,null,{"$f":"IF($J98=\"\",\"\",IF(K98=\"\",TODAY(),K98))","v":""},null,null,null,null,null,null,""]
[null,null,null,null,null,null,null,0,0,null,"",null,null,null,null,null,null,""]
[null,null,null,null,null,null,null,0,0,null,"",null,null,null,null,null,null,""]
[null,null,null,null,null,null,null,0,0,null,"",null,null,null,null,null,null,""]
[null,null,null,null,null,null,null,0,0,null,""]
[null,null,null,null,null,null,null,0,0,null,""]
[null,null,null,null,null,null,null,0,0,null,""]
[null,null,null,null,null,null,null,0,0,null,""]
[null,null,null,null,null,null,null,0,0,null,""]
[null,null,null,null,null,null,null,0,0,null,""]
[null,null,null,null,null,null,null,0,0,null,""]
[null,null,null,null,null,null,null,0,0,null,""]
[null,null,null,null,null,null,null,0,0,null,""]
[null,null,null,null,null,null,null,0,0,null,""]
[null,null,null,null,null,null,null,0,0,null,""]
[null,null,null,null,null,null,null,0,0,null,""]
[null,null,null,null,null,null,null,0,0,null,""]
[null,null,null,null,null,null,null,0,0,null,""]
[null,null,null,null,null,null,null,0,0,null,""]
[null,null,null,null,null,null,null,0,0,null,""]
[null,null,null,null,null,null,null,0,0,null,""]
[null,null,null,null,null,null,null,0,0,null,""]
[null,null,null,null,null,null,null,0,0,null,""]
[null,null,null,null,null,null,null,0,0,null,""]
[null,null,null,null,null,null,null,0,0,null,""]
[null,null,null,null,null,null,null,0,0,null,""]
[null,null,null,null,null,null,null,0,0,null,""]
[null,null,null,null,null,null,null,0,0,null,""]
[null,null,null,null,null,null,null,0,0,null,""]
[null,null,null,null,null,null,null,0,0,null,""]
[null,null,null,null,null,null,null,0,0,null,""]
[null,null,null,null,null,null,null,0,0,null,""]
[null,null,null,null,null,null,null,0,0,null,""]
[null,null,null,null,null,null,null,{"$f":"B131/50","v":0},{"$f":"J131-H131","v":0},null,""]

{"sheet":"نامى 21 خشن","index":3,"n_rows":115,"n_cols":11,"rows_kept":115,"cut":false,"hidden":false,"merged":[]}
["مسلسل",{"$f":"SUM($B$2:$B$984)","v":1400},"الصنف","الاسم","السعر",{"$f":"SUM($F$2:$F$984)","v":0},"تاريخ البيع",{"$f":"SUM($H$2:$H$984)","v":28},{"$f":"SUM($I$2:$I$984)","v":52},{"$f":"SUM($J$2:$J$984)","v":80},"التاريخ"]
[2,600,"نامى 21 خشن","شحتة","اجل",null,"2018-12-04",{"$f":"B2/50","v":12},{"$f":"J2-H2","v":8},20,"2018-10-24"]
[5,50,"نامى 21 خشن","شحتة",null,0,"2018-12-05",1,-1,null,{"$f":"IF($J3=\"\",\"\",IF(K3=\"\",TODAY(),K3))","v":""}]
[6,50,"نامى 21 خشن","الشيخ عمر",null,0,"2018-12-05",1,-1,null,""]
[1,100,"نامى 21 خشن","شحتة","اجل",null,"2018-12-05",2,-2,null,""]
[4,50,"نامى 21 خشن","حسين حمادة",null,0,"2018-12-06",1,59,60,"2018-12-08"]
[1,50,"نامى 21 خشن","السيد كراسيع","اجل",null,"2018-12-11",1,-1,null,""]
[1,50,"نامى 21 خشن","حسين حمادة",null,0,"2018-12-12",1,-1,null,""]
[1,150,"نامى 21 خشن","الشيخ عمر",null,0,"2018-12-12",3,-3,null,""]
[3,150,"نامى 21 خشن","فكرى","اجل",null,"2018-12-12",3,-3]
[1,50,"نامى 21 خشن","حسن السواق",null,0,"2018-12-12",1,-1,null,""]
[2,25,"نامى 21 خشن","الشيخ عمر","اجل",null,"2018-12-15",0.5,-0.5,null,""]
[3,50,"نامى 21 خشن","احمد سرحان","اجل",null,"2018-12-15",1,-1,null,""]
[1,25,"نامى 21 خشن","ابو زينة",null,0,"2018-12-15",0.5,-0.5,null,""]
[null,null,null,null,null,null,null,0,0,null,""]
[null,null,null,null,null,null,null,0,0,null,""]
[null,null,null,null,null,null,null,0,0,null,""]
[null,null,null,null,null,null,null,0,0,null,""]
[null,null,null,null,null,null,null,0,0,null,""]
[null,null,null,null,null,null,null,0,0,null,""]
[null,null,null,null,null,null,null,0,0,null,""]
[null,null,null,null,null,null,null,0,0,null,""]
[null,null,null,null,null,null,null,0,0,null,""]
[null,null,null,null,null,null,null,0,0,null,""]
[null,null,null,null,null,null,null,0,0,null,""]
[null,null,null,null,null,null,null,0,0,null,""]
[null,null,null,null,null,null,null,0,0,null,""]
[null,null,null,null,null,null,null,0,0,null,""]
[null,null,null,null,null,null,null,0,0,null,""]
[null,null,null,null,null,null,null,0,0,null,""]
[null,null,null,null,null,null,null,0,0,null,""]
[null,null,null,null,null,null,null,0,0,null,""]
[null,null,null,null,null,null,null,{"$f":"B33/50","v":0},{"$f":"J33-H33","v":0},null,{"$f":"IF($J33=\"\",\"\",IF(K33=\"\",TODAY(),K33))","v":""}]
[null,null,null,null,null,null,null,0,0,null,""]
[null,null,null,null,null,null,null,0,0,null,""]
[null,null,null,null,null,null,null,0,0,null,""]
[null,null,null,null,null,null,null,{"$f":"B37/50","v":0},{"$f":"J37-H37","v":0},null,""]
[null,null,null,null,null,null,null,0,0,null,""]
[null,null,null,null,null,null,null,0,0,null,""]
[null,null,null,null,null,null,null,0,0,null,""]
[null,null,null,null,null,null,null,0,0,null,""]
[null,null,null,null,null,null,null,0,0,null,""]
[null,null,null,null,null,null,null,{"$f":"B43/50","v":0},{"$f":"J43-H43","v":0},null,""]
[null,null,null,null,null,null,null,0,0,null,""]
[null,null,null,null,null,null,null,0,0,null,""]
[null,null,null,null,null,null,null,0,0,null,""]
[null,null,null,null,null,null,null,0,0,null,""]
[null,null,null,null,null,null,null,0,0,null,""]
[null,null,null,null,null,null,null,0,0,null,""]
[null,null,null,null,null,null,null,0,0,null,""]
[null,null,null,null,null,null,null,0,0,null,""]
[null,null,null,null,null,null,null,0,0,null,""]
[null,null,null,null,null,null,null,0,0,null,""]
[null,null,null,null,null,null,null,0,0,null,""]
[null,null,null,null,null,null,null,0,0,null,""]
[null,null,null,null,null,null,null,0,0,null,""]
[null,null,null,null,null,null,null,0,0,null,""]
[null,null,null,null,null,null,null,0,0,null,""]
[null,null,null,null,null,null,null,0,0,null,""]
[null,null,null,null,null,null,null,0,0,null,""]
[null,null,null,null,null,null,null,0,0,null,""]
[null,null,null,null,null,null,null,0,0,null,""]
[null,null,null,null,null,null,null,0,0,null,""]
[null,null,null,null,null,null,null,0,0,null,""]
[null,null,null,null,null,null,null,0,0,null,""]
[null,null,null,null,null,null,null,0,0]
[null,null,null,null,null,null,null,0,0,null,""]
[null,null,null,null,null,null,null,0,0,null,""]
[null,null,null,null,null,null,null,0,0,null,""]
[null,null,null,null,null,null,null,0,0,null,""]
[null,null,null,null,null,null,null,0,0,null,""]
[null,null,null,null,null,null,null,0,0,null,""]
[null,null,null,null,null,null,null,0,0,null,""]
[null,null,null,null,null,null,null,0,0,null,""]
[null,null,null,null,null,null,null,0,0,null,""]
[null,null,null,null,null,null,null,0,0,null,""]
[null,null,null,null,null,null,null,0,0,null,""]
[null,null,null,null,null,null,null,0,0,null,""]
[null,null,null,null,null,null,null,0,0,null,""]
[null,null,null,null,null,null,null,0,0,null,""]
[null,null,null,null,null,null,null,0,0,null,""]
[null,null,null,null,null,null,null,0,0,null,""]
[null,null,null,null,null,null,null,0,0,null,""]
[null,null,null,null,null,null,null,0,0,null,""]
[null,null,null,null,null,null,null,0,0,null,""]
[null,null,null,null,null,null,null,0,0,null,""]
[null,null,null,null,null,null,null,0,0,null,""]
[null,null,null,null,null,null,null,0,0,null,""]
[null,null,null,null,null,null,null,0,0,null,""]
[null,null,null,null,null,null,null,null,null,null,""]
[null,null,null,null,null,null,null,null,null,null,""]
[null,null,null,null,null,null,null,null,null,null,""]
[null,null,null,null,null,null,null,null,null,null,""]
[null,null,null,null,null,null,null,null,null,null,""]
[null,null,null,null,null,null,null,null,null,null,""]
[null,null,null,null,null,null,null,null,null,null,""]
[null,null,null,null,null,null,null,null,null,null,{"$f":"IF($J97=\"\",\"\",IF(K97=\"\",TODAY(),K97))","v":""}]
[null,null,null,null,null,null,null,null,null,null,""]
[null,null,null,null,null,null,null,null,null,null,""]
[null,null,null,null,null,null,null,null,null,null,""]
[null,null,null,null,null,null,null,null,null,null,""]
[null,null,null,null,null,null,null,null,null,null,""]
[null,null,null,null,null,null,null,null,null,null,""]
[null,null,null,null,null,null,null,null,null,null,""]
[null,null,null,null,null,null,null,null,null,null,""]
[null,null,null,null,null,null,null,null,null,null,""]
[null,null,null,null,null,null,null,null,null,null,""]
[null,null,null,null,null,null,null,null,null,null,""]
[null,null,null,null,null,null,null,null,null,null,""]
[null,null,null,null,null,null,null,null,null,null,""]
[null,null,null,null,null,null,null,null,null,null,""]
[null,null,null,null,null,null,null,null,null,null,""]
[null,null,null,null,null,null,null,null,null,null,""]
[null,null,null,null,null,null,null,null,null,null,""]
[null,null,null,null,null,null,null,null,null,null,""]

{"sheet":"بادى نامى  ناعم","index":4,"n_rows":65,"n_cols":11,"rows_kept":65,"cut":false,"hidden":false,"merged":[]}
["مسلسل",{"$f":"SUM($B$2:$B$986)","v":0},"الصنف","الاسم","السعر",{"$f":"SUM($F$2:$F$986)","v":0},"تاريخ البيع",{"$f":"SUM($H$2:$H$986)","v":0},{"$f":"SUM($I$2:$I$986)","v":0},{"$f":"SUM($J$2:$J$986)","v":0},"التاريخ"]
[null,null,null,null,null,null,null,{"$f":"B2/50","v":0},{"$f":"J2-H2","v":0},null,{"$f":"IF($J2=\"\",\"\",IF(K2=\"\",TODAY(),K2))","v":""}]
[null,null,null,null,null,null,null,0,0,null,""]
[null,null,null,null,null,null,null,0,0,null,""]
[null,null,null,null,null,null,null,0,0,null,""]
[null,null,null,null,null,null,null,0,0,null,""]
[null,null,null,null,null,null,null,0,0,null,""]
[null,null,null,null,null,null,null,0,0,null,""]
[null,null,null,null,null,null,null,0,0,null,""]
[null,null,null,null,null,null,null,0,0,null,""]
[null,null,null,null,null,null,null,0,0,null,""]
[null,null,null,null,null,null,null,0,0,null,""]
[null,null,null,null,null,null,null,0,0,null,""]
[null,null,null,null,null,null,null,0,0,null,""]
[null,null,null,null,null,null,null,0,null,null,""]
[null,null,null,null,null,null,null,0,null,null,""]
[null,null,null,null,null,null,null,0,null,null,""]
[null,null,null,null,null,null,null,0,null,null,""]
[null,null,null,null,null,null,null,0,null,null,""]
[null,null,null,null,null,null,null,0,null,null,""]
[null,null,null,null,null,null,null,0,null,null,""]
[null,null,null,null,null,null,null,0,null,null,""]
[null,null,null,null,null,null,null,0,null,null,""]
[null,null,null,null,null,null,null,0,null,null,""]
[null,null,null,null,null,null,null,0,null,null,""]
[null,null,null,null,null,null,null,0,null,null,""]
[null,null,null,null,null,null,null,0,null,null,""]
[null,null,null,null,null,null,null,0,null,null,""]
[null,null,null,null,null,null,null,0,null,null,""]
[null,null,null,null,null,null,null,0,null,null,""]
[null,null,null,null,null,null,null,0,null,null,""]
[null,null,null,null,null,null,null,0,null,null,""]
[null,null,null,null,null,null,null,0,null,null,""]
[null,null,null,null,null,null,null,null,null,null,{"$f":"IF($J34=\"\",\"\",IF(K34=\"\",TODAY(),K34))","v":""}]
[null,null,null,null,null,null,null,null,null,null,""]
[null,null,null,null,null,null,null,null,null,null,""]
[null,null,null,null,null,null,null,null,null,null,""]
[null,null,null,null,null,null,null,null,null,null,""]
[null,null,null,null,null,null,null,null,null,null,""]
[null,null,null,null,null,null,null,null,null,null,""]
[null,null,null,null,null,null,null,null,null,null,""]
[null,null,null,null,null,null,null,null,null,null,""]
[null,null,null,null,null,null,null,null,null,null,""]
[null,null,null,null,null,null,null,null,null,null,""]
[null,null,null,null,null,null,null,null,null,null,""]
[null,null,null,null,null,null,null,null,null,null,""]
[null,null,null,null,null,null,null,null,null,null,""]
[null,null,null,null,null,null,null,null,null,null,""]
[null,null,null,null,null,null,null,null,null,null,""]
[null,null,null,null,null,null,null,null,null,null,""]
[null,null,null,null,null,null,null,null,null,null,""]
[null,null,null,null,null,null,null,null,null,null,""]
[null,null,null,null,null,null,null,null,null,null,""]
[null,null,null,null,null,null,null,null,null,null,""]
[null,null,null,null,null,null,null,null,null,null,""]
[null,null,null,null,null,null,null,null,null,null,""]
[null,null,null,null,null,null,null,null,null,null,""]
[null,null,null,null,null,null,null,null,null,null,""]
[null,null,null,null,null,null,null,null,null,null,""]
[null,null,null,null,null,null,null,null,null,null,""]
[null,null,null,null,null,null,null,null,null,null,""]
[null,null,null,null,null,null,null,null,null,null,""]
[null,null,null,null,null,null,null,null,null,null,""]
[null,null,null,null,null,null,null,null,null,null,""]
[null,null,null,null,null,null,null,null,null,null,""]

{"sheet":"بادى نامى خشن","index":5,"n_rows":354,"n_cols":12,"rows_kept":354,"cut":false,"hidden":false,"merged":[]}
["مسلسل",{"$f":"SUM($B$2:$B$984)","v":1106.5},"الصنف","الاسم","السعر",{"$f":"SUM($F$2:$F$984)","v":0},"تاريخ البيع",{"$f":"SUM($H$2:$H$984)","v":22.13},{"$f":"SUM($I$2:$I$984)","v":18.710000000000004},{"$f":"SUM($J$2:$J$984)","v":40.840000000000003},"التاريخ"]
[1,900,"بادى نامى خشن","عبد المنعم الحوت","اجل",null,"2018-12-04",{"$f":"B2/50","v":18},{"$f":"J2-H2","v":2},20,{"$f":"IF($J2=\"\",\"\",IF(K2=\"\",TODAY(),K2))","v":"2018-12-04"}]
[1,3,"بادى نامى خشن","زبون",null,0,"2018-12-06",0.06,-0.06,null,""]
[5,1.5,"بادى نامى خشن","زبون",null,0,"2018-12-06",0.03,-0.03,null,""]
[1,5,"بادى نامى خشن","الحاج عبده اليابانى",null,0,"2018-12-06",0.1,-0.1,null,""]
[1,6,"بادى نامى خشن","زبون",null,0,"2018-12-08",0.12,-0.12,null,""]
[4,1.5,"بادى نامى خشن","زبون",null,0,"2018-12-08",0.03,19.97,20,"2018-12-08"]
[1,3,"بادى نامى خشن","ام محمد سبايت",null,0,"2018-12-09",0.06,-0.06,null,""]
[2,50,"بادى نامى خشن","الشيخ عمر",null,0,"2018-12-09",1,-1,null,""]
[1,1.5,"بادى نامى خشن","زبون",null,0,"2018-12-09",0.03,-0.03,null,""]
[1,50,"بادى نامى خشن","حسن السواق",null,0,"2018-12-09",1,-1,null,""]
[1,50,"بادى نامى خشن","الشيخ عمر","اجل",null,"2018-12-10",1,-1,null,""]
[2,1.5,"بادى نامى خشن","زبون",null,0,"2018-12-10",0.03,-0.03,null,""]
[1,3,"بادى نامى خشن","زبونة",null,0,"2018-12-11",0.06,-0.06,null,""]
[1,1.5,"بادى نامى خشن","زبونة",null,0,"2018-12-11",0.03,-0.03,null,""]
[2,3,"بادى نامى خشن","زبونة",null,0,"2018-12-11",0.06,-0.06,null,""]
[2,3,"بادى نامى خشن","فتحية",null,0,"2018-12-12",0.06,-0.06,null,""]
[3,1.5,"بادى نامى خشن","زبونة",null,0,"2018-12-12",0.03,0.80999999999999994,0.84,"2018-12-12","مرتجع حسن السواق"]
[5,3,"بادى نامى خشن","زبون",null,0,"2018-12-15",0.06,-0.06,null,""]
[7,9.5,"بادى نامى خشن","فتحية",null,0,"2018-12-15",0.19,-0.19,null,""]
[9,1,"بادى نامى خشن","زبون",null,0,"2018-12-15",0.02,-0.02,null,""]
[10,4,"بادى نامى خشن","زبون",null,0,"2018-12-15",0.08,-0.08,null,""]
[1,4,"بادى نامى خشن","زبون",null,0,"2018-12-15",0.08,-0.08,null,""]
[null,null,null,null,null,null,null,0,0,null,""]
[null,null,null,null,null,null,null,0,0,null,""]
[null,null,null,null,null,null,null,0,0,null,""]
[null,null,null,null,null,null,null,0,0,null,""]
[null,null,null,null,null,null,null,0,0,null,""]
[null,null,null,null,null,null,null,0,0,null,""]
[null,null,null,null,null,null,null,0,0,null,""]
[null,null,null,null,null,null,null,0,0,null,""]
[null,null,null,null,null,null,null,{"$f":"B32/50","v":0},{"$f":"J32-H32","v":0},null,{"$f":"IF($J32=\"\",\"\",IF(K32=\"\",TODAY(),K32))","v":""}]
[null,null,null,null,null,null,null,0,0,null,""]
[null,null,null,null,null,null,null,0,0,null,""]
[null,null,null,null,null,null,null,0,0,null,""]
[null,null,null,null,null,null,null,0,0,null,""]
[null,null,null,null,null,null,null,0,0,null,""]
[null,null,null,null,null,null,null,{"$f":"B38/50","v":0},{"$f":"J38-H38","v":0},null,""]
[null,null,null,null,null,null,null,0,0,null,""]
[null,null,null,null,null,null,null,0,0,null,""]
[null,null,null,null,null,null,null,0,0,null,""]
[null,null,null,null,null,null,null,0,0,null,""]
[null,null,null,null,null,null,null,0,0,null,""]
[null,null,null,null,null,null,null,0,0,null,""]
[null,null,null,null,null,null,null,0,0,null,""]
[null,null,null,null,null,null,null,0,0,null,""]
[null,null,null,null,null,null,null,0,0,null,""]
[null,null,null,null,null,null,null,0,0,null,""]
[null,null,null,null,null,null,null,0,0,null,""]
[null,null,null,null,null,null,null,0,0,null,""]
[null,null,null,null,null,null,null,0,0,null,""]
[null,null,null,null,null,null,null,0,0,null,""]
[null,null,null,null,null,null,null,0,0,null,""]
[null,null,null,null,null,null,null,0,0,null,""]
[null,null,null,null,null,null,null,0,0,null,""]
[null,null,null,null,null,null,null,0,0,null,""]
[null,null,null,null,null,null,null,0,0,null,""]
[null,null,null,null,null,null,null,0,0,null,""]
[null,null,null,null,null,null,null,0,0,null,""]
[null,null,null,null,null,null,null,0,0,null,""]
[null,null,null,null,null,null,null,0,0,null,""]
[null,null,null,null,null,null,null,0,0,null,""]
[null,null,null,null,null,null,null,0,0,null,""]
[null,null,null,null,null,null,null,0,0,null,""]
[null,null,null,null,null,null,null,0,0,null,""]
[null,null,null,null,null,null,null,0,0,null,""]
[null,null,null,null,null,null,null,0,0,null,""]
[null,null,null,null,null,null,null,0,0,null,""]
[null,null,null,null,null,null,null,0,0,null,""]
[null,null,null,null,null,null,null,0,0,null,""]
[null,null,null,null,null,null,null,0,0,null,""]
[null,null,null,null,null,null,null,0,0,null,""]
[null,null,null,null,null,null,null,0,0,null,""]
[null,null,null,null,null,null,null,0,0,null,""]
[null,null,null,null,null,null,null,0,0,null,""]
[null,null,null,null,null,null,null,0,0,null,""]
[null,null,null,null,null,null,null,0,0,null,""]
[null,null,null,null,null,null,null,0,0,null,""]
[null,null,null,null,null,null,null,0,0]
[null,null,null,null,null,null,null,0,0,null,""]
[null,null,null,null,null,null,null,0,0,null,""]
[null,null,null,null,null,null,null,0,0,null,""]
[null,null,null,null,null,null,null,0,0,null,""]
[null,null,null,null,null,null,null,0,0,null,""]
[null,null,null,null,null,null,null,0,0,null,""]
[null,null,null,null,null,null,null,0,0,null,""]
[null,null,null,null,null,null,null,0,0,null,""]
[null,null,null,null,null,null,null,0,0,null,""]
[null,null,null,null,null,null,null,0,0,null,""]
[null,null,null,null,null,null,null,0,0,null,""]
[null,null,null,null,null,null,null,0,0,null,""]
[null,null,null,null,null,null,null,0,0,null,""]
[null,null,null,null,null,null,null,0,0,null,""]
[null,null,null,null,null,null,null,0,0,null,""]
[null,null,null,null,null,null,null,0,0,null,""]
[null,null,null,null,null,null,null,0,0,null,""]
[null,null,null,null,null,null,null,0,0,null,{"$f":"IF($J97=\"\",\"\",IF(K97=\"\",TODAY(),K97))","v":""}]
[null,null,null,null,null,null,null,0,0,null,""]
[null,null,null,null,null,null,null,0,0,null,""]
[null,null,null,null,null,null,null,0,0,null,""]
[null,null,null,null,null,null,null,0,0,null,""]
[null,null,null,null,null,null,null,0,0,null,""]
[null,null,null,null,null,null,null,{"$f":"B103/50","v":0},{"$f":"J103-H103","v":0},null,""]
[null,null,null,null,null,null,null,0,0,null,""]
[null,null,null,null,null,null,null,0,0,null,""]
[null,null,null,null,null,null,null,0,0,null,""]
[null,null,null,null,null,null,null,0,0,null,""]
[null,null,null,null,null,null,null,0,0,null,""]
[null,null,null,null,null,null,null,0,0,null,""]
[null,null,null,null,null,null,null,0,0,null,""]
[null,null,null,null,null,null,null,0,0,null,""]
[null,null,null,null,null,null,null,0,0,null,""]
[null,null,null,null,null,null,null,0,0,null,""]
[null,null,null,null,null,null,null,0,0,null,""]
[null,null,null,null,null,null,null,0,0,null,""]
[null,null,null,null,null,null,null,0,0,null,""]
[null,null,null,null,null,null,null,0,0,null,""]
[null,null,null,null,null,null,null,0,0,null,""]
[null,null,null,null,null,null,null,0,0,null,""]
[null,null,null,null,null,null,null,0,0,null,""]
[null,null,null,null,null,null,null,{"$f":"B121/50","v":0},{"$f":"J121-H121","v":0},null,""]
[null,null,null,null,null,null,null,0,0,null,""]
[null,null,null,null,null,null,null,0,0,null,""]
[null,null,null,null,null,null,null,0,0,null,""]
[null,null,null,null,null,null,null,0,0,null,""]
[null,null,null,null,null,null,null,0,0,null,""]
[null,null,null,null,null,null,null,0,0,null,""]
[null,null,null,null,null,null,null,0,0,null,""]
[null,null,null,null,null,null,null,0,0,null,""]
[null,null,null,null,null,null,null,0,0,null,""]
[null,null,null,null,null,null,null,0,0,null,""]
[null,null,null,null,null,null,null,0,0,null,""]
[null,null,null,null,null,null,null,0,0,null,""]
[null,null,null,null,null,null,null,0,0,null,""]
[null,null,null,null,null,null,null,0,0,null,""]
[null,null,null,null,null,null,null,0,0,null,""]
[null,null,null,null,null,null,null,0,0,null,""]
[null,null,null,null,null,null,null,0,0,null,""]
[null,null,null,null,null,null,null,0,0,null,""]
[null,null,null,null,null,null,null,0,0,null,""]
[null,null,null,null,null,null,null,0,0,null,""]
[null,null,null,null,null,null,null,0,0,null,""]
[null,null,null,null,null,null,null,0,0,null,""]
[null,null,null,null,null,null,null,0,0,null,""]
[null,null,null,null,null,null,null,0,0,null,""]
[null,null,null,null,null,null,null,0,0,null,""]
[null,null,null,null,null,null,null,0,0,null,""]
[null,null,null,null,null,null,null,0,0,null,""]
[null,null,null,null,null,null,null,0,0,null,""]
[null,null,null,null,null,null,null,0,0,null,""]
[null,null,null,null,null,null,null,0,0,null,""]
[null,null,null,null,null,null,null,0,0,null,""]
[null,null,null,null,null,null,null,0,0,null,""]
[null,null,null,null,null,null,null,0,0,null,""]
[null,null,null,null,null,null,null,0,0,null,""]
[null,null,null,null,null,null,null,0,0,null,""]
[null,null,null,null,null,null,null,0,0,null,""]
[null,null,null,null,null,null,null,0,0,null,""]
[null,null,null,null,null,null,null,0,0,null,""]
[null,null,null,null,null,null,null,0,0,null,{"$f":"IF($J160=\"\",\"\",IF(K160=\"\",TODAY(),K160))","v":""}]
[null,null,null,null,null,null,null,0,0,null,""]
[null,null,null,null,null,null,null,0,0,null,""]
[null,null,null,null,null,null,null,0,0,null,""]
[null,null,null,null,null,null,null,0,0,null,""]
[null,null,null,null,null,null,null,0,0,null,""]
[null,null,null,null,null,null,null,0,0,null,""]
[null,null,null,null,null,null,null,0,0,null,""]
[null,null,null,null,null,null,null,0,0,null,""]
[null,null,null,null,null,null,null,0,0,null,""]
[null,null,null,null,null,null,null,0,0,null,""]
[null,null,null,null,null,null,null,0,0,null,""]
[null,null,null,null,null,null,null,0,0,null,""]
[null,null,null,null,null,null,null,0,0,null,""]
[null,null,null,null,null,null,null,0,0,null,""]
[null,null,null,null,null,null,null,0,0,null,""]
[null,null,null,null,null,null,null,0,0,null,""]
[null,null,null,null,null,null,null,0,0,null,""]
[null,null,null,null,null,null,null,0,0,null,""]
[null,null,null,null,null,null,null,0,0,null,""]
[null,null,null,null,null,null,null,0,0,null,""]
[null,null,null,null,null,null,null,0,0,null,""]
[null,null,null,null,null,null,null,0,0,null,""]
[null,null,null,null,null,null,null,0,0,null,""]
[null,null,null,null,null,null,null,0,0,null,""]
[null,null,null,null,null,null,null,{"$f":"B185/50","v":0},{"$f":"J185-H185","v":0},null,""]
[null,null,null,null,null,null,null,0,0,null,""]
[null,null,null,null,null,null,null,0,0,null,""]
[null,null,null,null,null,null,null,0,0,null,""]
[null,null,null,null,null,null,null,0,0,null,""]
[null,null,null,null,null,null,null,0,0,null,""]
[null,null,null,null,null,null,null,0,0,null,""]
[null,null,null,null,null,null,null,0,0,null,""]
[null,null,null,null,null,null,null,0,0,null,""]
[null,null,null,null,null,null,null,0,0,null,""]
[null,null,null,null,null,null,null,0,0,null,""]
[null,null,null,null,null,null,null,0,0,null,""]
[null,null,null,null,null,null,null,0,0,null,""]
[null,null,null,null,null,null,null,0,0,null,""]
[null,null,null,null,null,null,null,0,0,null,""]
[null,null,null,null,null,null,null,0,0,null,""]
[null,null,null,null,null,null,null,0,0,null,""]
[null,null,null,null,null,null,null,0,0,null,""]
[null,null,null,null,null,null,null,0,0,null,""]
[null,null,null,null,null,null,null,0,0,null,""]
[null,null,null,null,null,null,null,0,0,null,""]
[null,null,null,null,null,null,null,0,0,null,""]
[null,null,null,null,null,null,null,0,0,null,""]
[null,null,null,null,null,null,null,0,0,null,""]
[null,null,null,null,null,null,null,0,0,null,""]
[null,null,null,null,null,null,null,0,0,null,""]
[null,null,null,null,null,null,null,0,0,null,""]
[null,null,null,null,null,null,null,0,0,null,""]
[null,null,null,null,null,null,null,0,0,null,""]
[null,null,null,null,null,null,null,0,0,null,""]
[null,null,null,null,null,null,null,0,0,null,""]
[null,null,null,null,null,null,null,0,0,null,""]
[null,null,null,null,null,null,null,0,0,null,""]
[null,null,null,null,null,null,null,0,0,null,""]
[null,null,null,null,null,null,null,0,0,null,""]
[null,null,null,null,null,null,null,0,0,null,""]
[null,null,null,null,null,null,null,0,0,null,""]
[null,null,null,null,null,null,null,0,0,null,""]
[null,null,null,null,null,null,null,0,0,null,""]
[null,null,null,null,null,null,null,0,0,null,{"$f":"IF($J224=\"\",\"\",IF(K224=\"\",TODAY(),K224))","v":""}]
[null,null,null,null,null,null,null,0,0,null,""]
[null,null,null,null,null,null,null,0,0,null,""]
[null,null,null,null,null,null,null,0,0,null,""]
[null,null,null,null,null,null,null,0,0,null,""]
[null,null,null,null,null,null,null,0,0,null,""]
[null,null,null,null,null,null,null,0,0,null,""]
[null,null,null,null,null,null,null,0,0,null,""]
[null,null,null,null,null,null,null,0,0,null,""]
[null,null,null,null,null,null,null,0,0,null,""]
[null,null,null,null,null,null,null,0,0,null,""]
[null,null,null,null,null,null,null,0,0,null,""]
[null,null,null,null,null,null,null,0,0,null,""]
[null,null,null,null,null,null,null,0,0,null,""]
[null,null,null,null,null,null,null,0,0,null,""]
[null,null,null,null,null,null,null,0,0,null,""]
[null,null,null,null,null,null,null,0,0,null,""]
[null,null,null,null,null,null,null,0,0,null,""]
[null,null,null,null,null,null,null,0,0,null,""]
[null,null,null,null,null,null,null,0,0,null,""]
[null,null,null,null,null,null,null,0,0,null,""]
[null,null,null,null,null,null,null,0,0,null,""]
[null,null,null,null,null,null,null,0,0,null,""]
[null,null,null,null,null,null,null,0,0,null,""]
[null,null,null,null,null,null,null,0,0,null,""]
[null,null,null,null,null,null,null,{"$f":"B249/50","v":0},{"$f":"J249-H249","v":0},null,""]
[null,null,null,null,null,null,null,0,0,null,""]
[null,null,null,null,null,null,null,0,0,null,""]
[null,null,null,null,null,null,null,0,0,null,""]
[null,null,null,null,null,null,null,0,0,null,""]
[null,null,null,null,null,null,null,0,0,null,""]
[null,null,null,null,null,null,null,0,0,null,""]
[null,null,null,null,null,null,null,0,0,null,""]
[null,null,null,null,null,null,null,0,0,null,""]
[null,null,null,null,null,null,null,0,0,null,""]
[null,null,null,null,null,null,null,0,0,null,""]
[null,null,null,null,null,null,null,0,0,null,""]
[null,null,null,null,null,null,null,0,0,null,""]
[null,null,null,null,null,null,null,0,0,null,""]
[null,null,null,null,null,null,null,0,0,null,""]
[null,null,null,null,null,null,null,0,0,null,""]
[null,null,null,null,null,null,null,0,0,null,""]
[null,null,null,null,null,null,null,0,0,null,""]
[null,null,null,null,null,null,null,0,0,null,""]
[null,null,null,null,null,null,null,0,0,null,""]
[null,null,null,null,null,null,null,0,0,null,""]
[null,null,null,null,null,null,null,0,0,null,""]
[null,null,null,null,null,null,null,0,0,null,""]
[null,null,null,null,null,null,null,0,0,null,""]
[null,null,null,null,null,null,null,0,0,null,""]
[null,null,null,null,null,null,null,0,0,null,""]
[null,null,null,null,null,null,null,0,0,null,""]
[null,null,null,null,null,null,null,0,0,null,""]
[null,null,null,null,null,null,null,0,0,null,""]
[null,null,null,null,null,null,null,0,0,null,""]
[null,null,null,null,null,null,null,0,0,null,""]
[null,null,null,null,null,null,null,0,0,null,""]
[null,null,null,null,null,null,null,0,0,null,""]
[null,null,null,null,null,null,null,0,0,null,""]
[null,null,null,null,null,null,null,0,0,null,""]
[null,null,null,null,null,null,null,0,0,null,""]
[null,null,null,null,null,null,null,0,0,null,""]
[null,null,null,null,null,null,null,0,0,null,""]
[null,null,null,null,null,null,null,0,0,null,""]
[null,null,null,null,null,null,null,0,0,null,{"$f":"IF($J288=\"\",\"\",IF(K288=\"\",TODAY(),K288))","v":""}]
[null,null,null,null,null,null,null,0,0,null,""]
[null,null,null,null,null,null,null,0,0,null,""]
[null,null,null,null,null,null,null,0,0,null,""]
[null,null,null,null,null,null,null,0,0,null,""]
[null,null,null,null,null,null,null,0,0,null,""]
[null,null,null,null,null,null,null,0,0,null,""]
[null,null,null,null,null,null,null,0,0,null,""]
[null,null,null,null,null,null,null,0,0,null,""]
[null,null,null,null,null,null,null,0,0,null,""]
[null,null,null,null,null,null,null,0,0,null,""]
[null,null,null,null,null,null,null,0,0,null,""]
[null,null,null,null,null,null,null,0,0,null,""]
[null,null,null,null,null,null,null,0,0,null,""]
[null,null,null,null,null,null,null,0,0,null,""]
[null,null,null,null,null,null,null,0,0,null,""]
[null,null,null,null,null,null,null,0,0,null,""]
[null,null,null,null,null,null,null,0,0,null,""]
[null,null,null,null,null,null,null,0,0,null,""]
[null,null,null,null,null,null,null,0,0,null,""]
[null,null,null,null,null,null,null,0,0,null,""]
[null,null,null,null,null,null,null,0,0,null,""]
[null,null,null,null,null,null,null,0,0,null,""]
[null,null,null,null,null,null,null,0,0,null,""]
[null,null,null,null,null,null,null,0,0,null,""]
[null,null,null,null,null,null,null,{"$f":"B313/50","v":0},{"$f":"J313-H313","v":0},null,""]
[null,null,null,null,null,null,null,0,0,null,""]
[null,null,null,null,null,null,null,0,0,null,""]
[null,null,null,null,null,null,null,0,0,null,""]
[null,null,null,null,null,null,null,0,0,null,""]
[null,null,null,null,null,null,null,0,0,null,""]
[null,null,null,null,null,null,null,0,0,null,""]
[null,null,null,null,null,null,null,0,0,null,""]
[null,null,null,null,null,null,null,0,0,null,""]
[null,null,null,null,null,null,null,0,0,null,""]
[null,null,null,null,null,null,null,0,0,null,""]
[null,null,null,null,null,null,null,0,0,null,""]
[null,null,null,null,null,null,null,0,0,null,""]
[null,null,null,null,null,null,null,0,0,null,""]
[null,null,null,null,null,null,null,0,0,null,""]
[null,null,null,null,null,null,null,0,0,null,""]
[null,null,null,null,null,null,null,0,0,null,""]
[null,null,null,null,null,null,null,0,0,null,""]
[null,null,null,null,null,null,null,0,0,null,""]
[null,null,null,null,null,null,null,0,0,null,""]
[null,null,null,null,null,null,null,0,0,null,""]
[null,null,null,null,null,null,null,0,0,null,""]
[null,null,null,null,null,null,null,0,0,null,""]
[null,null,null,null,null,null,null,0,0,null,""]
[null,null,null,null,null,null,null,0,0,null,""]
[null,null,null,null,null,null,null,0,0,null,""]
[null,null,null,null,null,null,null,0,0,null,""]
[null,null,null,null,null,null,null,0,0,null,""]
[null,null,null,null,null,null,null,0,0,null,""]
[null,null,null,null,null,null,null,0,0,null,""]
[null,null,null,null,null,null,null,0,0,null,""]
[null,null,null,null,null,null,null,0,0,null,""]
[null,null,null,null,null,null,null,0,0,null,""]
[null,null,null,null,null,null,null,0,0,null,""]
[null,null,null,null,null,null,null,0,0,null,""]
[null,null,null,null,null,null,null,0,0,null,""]
[null,null,null,null,null,null,null,0,0,null,""]
[null,null,null,null,null,null,null,0,0,null,""]
[null,null,null,null,null,null,null,0,0,null,""]
[null,null,null,null,null,null,null,0,0,null,{"$f":"IF($J352=\"\",\"\",IF(K352=\"\",TODAY(),K352))","v":""}]
[null,null,null,null,null,null,null,0,0,null,""]
[null,null,null,null,null,null,null,null,null,null,""]

{"sheet":"بياض","index":6,"n_rows":65,"n_cols":11,"rows_kept":65,"cut":false,"hidden":false,"merged":[]}
["مسلسل",{"$f":"SUM($B$2:$B$986)","v":150},"الصنف","الاسم","السعر",{"$f":"SUM($F$2:$F$986)","v":0},"تاريخ البيع",{"$f":"SUM($H$2:$H$986)","v":3},{"$f":"SUM($I$2:$I$986)","v":5},{"$f":"SUM($J$2:$J$986)","v":8},"التاريخ"]
[1,100,"بياض","وليد فوزى","اجل",null,"2018-12-05",{"$f":"B2/50","v":2},{"$f":"J2-H2","v":1},3,{"$f":"IF($J2=\"\",\"\",IF(K2=\"\",TODAY(),K2))","v":"2018-12-04"}]
[1,50,"بياض","المزرعة",null,0,"2018-12-06",1,4,5,"2018-12-09"]
[null,null,null,null,null,null,null,0,0,null,""]
[null,null,null,null,null,null,null,0,0,null,""]
[null,null,null,null,null,null,null,0,0,null,""]
[null,null,null,null,null,null,null,0,0,null,""]
[null,null,null,null,null,null,null,0,0,null,""]
[null,null,null,null,null,null,null,0,0,null,""]
[null,null,null,null,null,null,null,0,0,null,""]
[null,null,null,null,null,null,null,0,0,null,""]
[null,null,null,null,null,null,null,0,0,null,""]
[null,null,null,null,null,null,null,0,0,null,""]
[null,null,null,null,null,null,null,0,0,null,""]
[null,null,null,null,null,null,null,0,0,null,""]
[null,null,null,null,null,null,null,0,0,null,""]
[null,null,null,null,null,null,null,0,0,null,""]
[null,null,null,null,null,null,null,0,0,null,""]
[null,null,null,null,null,null,null,0,0,null,""]
[null,null,null,null,null,null,null,0,0,null,""]
[null,null,null,null,null,null,null,0,0,null,""]
[null,null,null,null,null,null,null,{"$f":"B22/50","v":0},{"$f":"J22-H22","v":0},null,""]
[null,null,null,null,null,null,null,0,0,null,""]
[null,null,null,null,null,null,null,0,0,null,""]
[null,null,null,null,null,null,null,0,0,null,""]
[null,null,null,null,null,null,null,{"$f":"B26/50","v":0},{"$f":"J26-H26","v":0},null,""]
[null,null,null,null,null,null,null,0,0,null,""]
[null,null,null,null,null,null,null,0,0,null,""]
[null,null,null,null,null,null,null,0,0,null,""]
[null,null,null,null,null,null,null,0,0,null,""]
[null,null,null,null,null,null,null,0,0,null,""]
[null,null,null,null,null,null,null,0,0,null,""]
[null,null,null,null,null,null,null,0,0,null,""]
[null,null,null,null,null,null,null,null,null,null,{"$f":"IF($J34=\"\",\"\",IF(K34=\"\",TODAY(),K34))","v":""}]
[null,null,null,null,null,null,null,null,null,null,""]
[null,null,null,null,null,null,null,null,null,null,""]
[null,null,null,null,null,null,null,null,null,null,""]
[null,null,null,null,null,null,null,null,null,null,""]
[null,null,null,null,null,null,null,null,null,null,""]
[null,null,null,null,null,null,null,null,null,null,""]
[null,null,null,null,null,null,null,null,null,null,""]
[null,null,null,null,null,null,null,null,null,null,""]
[null,null,null,null,null,null,null,null,null,null,""]
[null,null,null,null,null,null,null,null,null,null,""]
[null,null,null,null,null,null,null,null,null,null,""]
[null,null,null,null,null,null,null,null,null,null,""]
[null,null,null,null,null,null,null,null,null,null,""]
[null,null,null,null,null,null,null,null,null,null,""]
[null,null,null,null,null,null,null,null,null,null,""]
[null,null,null,null,null,null,null,null,null,null,""]
[null,null,null,null,null,null,null,null,null,null,""]
[null,null,null,null,null,null,null,null,null,null,""]
[null,null,null,null,null,null,null,null,null,null,""]
[null,null,null,null,null,null,null,null,null,null,""]
[null,null,null,null,null,null,null,null,null,null,""]
[null,null,null,null,null,null,null,null,null,null,""]
[null,null,null,null,null,null,null,null,null,null,""]
[null,null,null,null,null,null,null,null,null,null,""]
[null,null,null,null,null,null,null,null,null,null,""]
[null,null,null,null,null,null,null,null,null,null,""]
[null,null,null,null,null,null,null,null,null,null,""]
[null,null,null,null,null,null,null,null,null,null,""]
[null,null,null,null,null,null,null,null,null,null,""]
[null,null,null,null,null,null,null,null,null,null,""]
[null,null,null,null,null,null,null,null,null,null,""]

{"sheet":"ردة","index":7,"n_rows":65,"n_cols":11,"rows_kept":65,"cut":false,"hidden":false,"merged":[]}
["مسلسل",{"$f":"SUM($B$2:$B$986)","v":0},"الصنف","الاسم","السعر",{"$f":"SUM($F$2:$F$986)","v":0},"تاريخ البيع",{"$f":"SUM($H$2:$H$986)","v":0},{"$f":"SUM($I$2:$I$986)","v":0},{"$f":"SUM($J$2:$J$986)","v":0},"التاريخ"]
[null,null,null,null,null,null,null,{"$f":"B2/40","v":0},{"$f":"J2-H2","v":0},null,{"$f":"IF($J2=\"\",\"\",IF(K2=\"\",TODAY(),K2))","v":""}]
[null,null,null,null,null,null,null,{"$f":"B3/40","v":0},0,null,""]
[null,null,null,null,null,null,null,0,0,null,""]
[null,null,null,null,null,null,null,0,0,null,""]
[null,null,null,null,null,null,null,0,0,null,""]
[null,null,null,null,null,null,null,0,0,null,""]
[null,null,null,null,null,null,null,0,0,null,""]
[null,null,null,null,null,null,null,0,0,null,""]
[null,null,null,null,null,null,null,0,0,null,""]
[null,null,null,null,null,null,null,0,0,null,""]
[null,null,null,null,null,null,null,0,0,null,""]
[null,null,null,null,null,null,null,0,0,null,""]
[null,null,null,null,null,null,null,0,0,null,""]
[null,null,null,null,null,null,null,0,0,null,""]
[null,null,null,null,null,null,null,0,0,null,""]
[null,null,null,null,null,null,null,0,0,null,""]
[null,null,null,null,null,null,null,0,0,null,""]
[null,null,null,null,null,null,null,0,0,null,""]
[null,null,null,null,null,null,null,0,0,null,""]
[null,null,null,null,null,null,null,0,0,null,""]
[null,null,null,null,null,null,null,0,0,null,""]
[null,null,null,null,null,null,null,0,0,null,""]
[null,null,null,null,null,null,null,0,0,null,""]
[null,null,null,null,null,null,null,0,0,null,""]
[null,null,null,null,null,null,null,0,0,null,""]
[null,null,null,null,null,null,null,0,0,null,""]
[null,null,null,null,null,null,null,0,0,null,""]
[null,null,null,null,null,null,null,0,0,null,""]
[null,null,null,null,null,null,null,0,0,null,""]
[null,null,null,null,null,null,null,0,0,null,""]
[null,null,null,null,null,null,null,0,0,null,""]
[null,null,null,null,null,null,null,0,0,null,""]
[null,null,null,null,null,null,null,null,null,null,{"$f":"IF($J34=\"\",\"\",IF(K34=\"\",TODAY(),K34))","v":""}]
[null,null,null,null,null,null,null,null,null,null,""]
[null,null,null,null,null,null,null,null,null,null,""]
[null,null,null,null,null,null,null,null,null,null,""]
[null,null,null,null,null,null,null,null,null,null,""]
[null,null,null,null,null,null,null,null,null,null,""]
[null,null,null,null,null,null,null,null,null,null,""]
[null,null,null,null,null,null,null,null,null,null,""]
[null,null,null,null,null,null,null,null,null,null,""]
[null,null,null,null,null,null,null,null,null,null,""]
[null,null,null,null,null,null,null,null,null,null,""]
[null,null,null,null,null,null,null,null,null,null,""]
[null,null,null,null,null,null,null,null,null,null,""]
[null,null,null,null,null,null,null,null,null,null,""]
[null,null,null,null,null,null,null,null,null,null,""]
[null,null,null,null,null,null,null,null,null,null,""]
[null,null,null,null,null,null,null,null,null,null,""]
[null,null,null,null,null,null,null,null,null,null,""]
[null,null,null,null,null,null,null,null,null,null,""]
[null,null,null,null,null,null,null,null,null,null,""]
[null,null,null,null,null,null,null,null,null,null,""]
[null,null,null,null,null,null,null,null,null,null,""]
[null,null,null,null,null,null,null,null,null,null,""]
[null,null,null,null,null,null,null,null,null,null,""]
[null,null,null,null,null,null,null,null,null,null,""]
[null,null,null,null,null,null,null,null,null,null,""]
[null,null,null,null,null,null,null,null,null,null,""]
[null,null,null,null,null,null,null,null,null,null,""]
[null,null,null,null,null,null,null,null,null,null,""]
[null,null,null,null,null,null,null,null,null,null,""]
[null,null,null,null,null,null,null,null,null,null,""]
[null,null,null,null,null,null,null,null,null,null,""]

{"sheet":"دشيشة","index":8,"n_rows":65,"n_cols":11,"rows_kept":65,"cut":false,"hidden":false,"merged":[]}
["مسلسل",{"$f":"SUM($B$2:$B$986)","v":0},"الصنف","الاسم","السعر",{"$f":"SUM($F$2:$F$986)","v":0},"تاريخ البيع",{"$f":"SUM($H$2:$H$986)","v":0},{"$f":"SUM($I$2:$I$986)","v":0},{"$f":"SUM($J$2:$J$986)","v":0},"التاريخ"]
[null,null,null,null,null,null,null,{"$f":"B2/50","v":0},{"$f":"J2-H2","v":0},null,{"$f":"IF($J2=\"\",\"\",IF(K2=\"\",TODAY(),K2))","v":""}]
[null,null,null,null,null,null,null,0,0,null,""]
[null,null,null,null,null,null,null,0,0,null,""]
[null,null,null,null,null,null,null,0,0,null,""]
[null,null,null,null,null,null,null,0,0,null,""]
[null,null,null,null,null,null,null,0,0,null,""]
[null,null,null,null,null,null,null,{"$f":"B8/50","v":0},0,null,""]
[null,null,null,null,null,null,null,0,0,null,""]
[null,null,null,null,null,null,null,0,0,null,""]
[null,null,null,null,null,null,null,0,0,null,""]
[null,null,null,null,null,null,null,0,0,null,""]
[null,null,null,null,null,null,null,0,0,null,""]
[null,null,null,null,null,null,null,0,0,null,""]
[null,null,null,null,null,null,null,0,0,null,""]
[null,null,null,null,null,null,null,0,0,null,""]
[null,null,null,null,null,null,null,0,0,null,""]
[null,null,null,null,null,null,null,0,0,null,""]
[null,null,null,null,null,null,null,0,0,null,""]
[null,null,null,null,null,null,null,0,0,null,""]
[null,null,null,null,null,null,null,0,0,null,""]
[null,null,null,null,null,null,null,0,0,null,""]
[null,null,null,null,null,null,null,0,0,null,""]
[null,null,null,null,null,null,null,0,0,null,""]
[null,null,null,null,null,null,null,0,0,null,""]
[null,null,null,null,null,null,null,0,0,null,""]
[null,null,null,null,null,null,null,0,0,null,""]
[null,null,null,null,null,null,null,0,0,null,""]
[null,null,null,null,null,null,null,0,0,null,""]
[null,null,null,null,null,null,null,0,0,null,""]
[null,null,null,null,null,null,null,0,0,null,""]
[null,null,null,null,null,null,null,0,0,null,""]
[null,null,null,null,null,null,null,0,0,null,""]
[null,null,null,null,null,null,null,null,null,null,{"$f":"IF($J34=\"\",\"\",IF(K34=\"\",TODAY(),K34))","v":""}]
[null,null,null,null,null,null,null,null,null,null,""]
[null,null,null,null,null,null,null,null,null,null,""]
[null,null,null,null,null,null,null,null,null,null,""]
[null,null,null,null,null,null,null,null,null,null,""]
[null,null,null,null,null,null,null,null,null,null,""]
[null,null,null,null,null,null,null,null,null,null,""]
[null,null,null,null,null,null,null,null,null,null,""]
[null,null,null,null,null,null,null,null,null,null,""]
[null,null,null,null,null,null,null,null,null,null,""]
[null,null,null,null,null,null,null,null,null,null,""]
[null,null,null,null,null,null,null,null,null,null,""]
[null,null,null,null,null,null,null,null,null,null,""]
[null,null,null,null,null,null,null,null,null,null,""]
[null,null,null,null,null,null,null,null,null,null,""]
[null,null,null,null,null,null,null,null,null,null,""]
[null,null,null,null,null,null,null,null,null,null,""]
[null,null,null,null,null,null,null,null,null,null,""]
[null,null,null,null,null,null,null,null,null,null,""]
[null,null,null,null,null,null,null,null,null,null,""]
[null,null,null,null,null,null,null,null,null,null,""]
[null,null,null,null,null,null,null,null,null,null,""]
[null,null,null,null,null,null,null,null,null,null,""]
[null,null,null,null,null,null,null,null,null,null,""]
[null,null,null,null,null,null,null,null,null,null,""]
[null,null,null,null,null,null,null,null,null,null,""]
[null,null,null,null,null,null,null,null,null,null,""]
[null,null,null,null,null,null,null,null,null,null,""]
[null,null,null,null,null,null,null,null,null,null,""]
[null,null,null,null,null,null,null,null,null,null,""]
[null,null,null,null,null,null,null,null,null,null,""]
[null,null,null,null,null,null,null,null,null,null,""]

{"sheet":"Setting","index":9,"n_rows":21,"n_cols":5,"rows_kept":21,"cut":false,"hidden":true,"merged":[]}
["اسماء الأصناف","سعر الكيلو",null,null,"أسماء العملاء"]
["بلدى",2.5,null,null,"عميل رقم 1"]
["ساسو",3,null,null,"عميل رقم 2"]
["دقى",3.5,null,null,"عميل رقم 3"]
["فيومى",4,null,null,"عميل رقم 4"]
["دشيشة",4.5,null,null,"عميل رقم 5"]
["ردة",4.5,null,null,"عميل رقم 6"]
["علف بط",5,null,null,"عميل رقم 7"]
["بياض",5,null,null,"عميل رقم 8"]
["تسمين",6.5,null,null,"عميل رقم 9"]
["بادى نامى خشن",7,null,null,"عميل رقم 10"]
["بادى نامى ناعم",7,null,null,"عميل رقم 11"]
["نامى خشن",7,null,null,"عميل رقم 12"]
["بادى ناعم",7.5,null,null,"عميل رقم 13"]
["مولر",15,null,null,"عميل رقم 14"]
["موسكوفى",18,null,null,"عميل رقم 15"]
["رومى",30,null,null,"عميل رقم 16"]
[null,null,null,null,"عميل رقم 17"]
[null,null,null,null,"عميل رقم 18"]
[null,null,null,null,"عميل رقم 19"]
[null,null,null,null,"عميل رقم 20"]

{"sheet":"ورقة1","index":10,"n_rows":54,"n_cols":5,"rows_kept":54,"cut":false,"hidden":false,"merged":[[0,1,0,2],[0,3,0,4],[0,0,1,0]]}
["اليوم","عدد البيض",null,"عدد الكراتين"]
[null,"احمر","ابيض",{"$f":"SUM($D$3:$D$1000)","v":23},{"$f":"SUM($E$3:$E$1000)","v":15}]
["2018-12-11",null,null,{"$f":"B3/30","v":0},{"$f":"C3/30","v":0}]
["2018-12-12",null,null,{"$f":"B4/30","v":0},{"$f":"C4/30","v":0}]
["2018-12-13",null,null,0,0]
["2018-12-14",690,450,23,15]
["2018-12-15",null,null,0,0]
["2018-12-16",null,null,0,0]
["2018-12-17",null,null,0,0]
["2018-12-18",null,null,0,0]
["2018-12-19",null,null,0,0]
["2018-12-20",null,null,0,0]
["2018-12-21",null,null,0,0]
["2018-12-22",null,null,0,0]
["2018-12-23",null,null,0,0]
["2018-12-24",null,null,0,0]
["2018-12-25",null,null,0,0]
["2018-12-26",null,null,0,0]
["2018-12-27",null,null,0,0]
["2018-12-28",null,null,0,0]
["2018-12-29",null,null,0,0]
["2018-12-30",null,null,0,0]
["2018-12-31",null,null,0,0]
["2019-01-01",null,null,0,0]
["2019-01-02",null,null,0,0]
["2019-01-03",null,null,0,0]
["2019-01-04",null,null,0,0]
["2019-01-05",null,null,0,0]
["2019-01-06",null,null,0,0]
["2019-01-07",null,null,0,0]
["2019-01-08",null,null,0,0]
["2019-01-09",null,null,0,0]
["2019-01-10",null,null,0,0]
["2019-01-11",null,null,0,0]
["2019-01-12",null,null,0,0]
["2019-01-13",null,null,0,0]
["2019-01-14",null,null,0,0]
["2019-01-15",null,null,0,0]
["2019-01-16",null,null,0,0]
["2019-01-17",null,null,0,0]
["2019-01-18",null,null,0,0]
["2019-01-19",null,null,0,0]
["2019-01-20",null,null,0,0]
["2019-01-21",null,null,0,0]
["2019-01-22",null,null,0,0]
["2019-01-23",null,null,{"$f":"B46/30","v":0},{"$f":"C46/30","v":0}]
["2019-01-24",null,null,0,0]
["2019-01-25",null,null,0,0]
["2019-01-26",null,null,0,0]
["2019-01-27",null,null,0,0]
["2019-01-28",null,null,0,0]
["2019-01-29",null,null,0,0]
["2019-01-30",null,null,0,0]
["2019-01-31",null,null,{"$f":"B54/30","v":0},{"$f":"C54/30","v":0}]